Cogmind - Beta 15 @@@ ROGUE MODE // 2025.10.10 @ 19:19:36 Player: chebyrekser Result: Destroyed by P-70 Sage with Tesla Rifle Performance ------------- Evolutions (6) 3000 Regions Visited (26) 5200 Robots Destroyed (440) 2200 Value Destroyed (13727) 13727 Prototype IDs (48) 960 Alien Tech Used (1) 200 Bonus (8465) 8465 TOTAL SCORE: 33752 Bonus ------- High Alert Combat Kills 1770 Follower Combat Kills 3458 Awakened Behemoth Slayer 1000 Entered Garrisons 200 Network Hubs Disabled 200 Met Data Miner 300 Met Imprinter 300 Was Imprinted 300 Acquired ECA 300 Built Enhanced Grunts 300 A7 Reached Mainframe 300 Met R17 at Cetus 500 Friendly Fire -463 Cogmind --------- Core Integrity 0/1150 Matter 180/300 Energy 93/100 System Corruption 10% Temperature Cool (0) Movement Core (50) Location -4/Upper Caves Parts ------- > --- POWER (2) -------- (None) > --- PROPULSION (6) --- (None) > --- UTILITY (8) ------ Enhanced Optical Array Advanced Signal Interpreter Transport Network Coupler Core Analyzer > --- WEAPON (4) ------- (None) > --- INVENTORY (5) ---- Advanced Terrain Scanner Experimental Targeting Computer Graphene Brace Phasing AFG Heavy Phase Cannon Peak State ------------ > --- POWER ------------ F-cell Engine > --- PROPULSION ------- Cooled Airjet Combat Airjet Combat Airjet Combat Airjet Antigrav System Improved Linear Gravjet > --- UTILITY ---------- Large Storage Unit Enhanced Optical Array Experimental Sensor Array Advanced Signal Interpreter Transport Network Coupler Advanced Melee Analysis Suite Advanced Melee Analysis Suite Core Analyzer > --- WEAPON ----------- Heavy Phase Cannon Hypervelocity Coil Gun Improved Plasma Cutter Thunder Hammer > --- INVENTORY -------- Experimental Heat Sink Advanced Terrain Scanner Experimental Targeting Computer Makeshift Transmission Jammer Advanced Transmission Jammer Layered Medium Armor Plating Centrium Medium Armor Plating Graphene Brace Phasing AFG Long-range Proton Cannon Hypervelocity Gauss Cannon Shock Bomb Launcher Smartbomb Launcher CR-A16's Behemoth Slayer [Rating: 109] Favorites ----------- Power Cooled Ion Engine Engine Cooled Ion Engine Power Core Micro Fission Core Propulsion Light Treads Treads Light Treads Wheel Compact Wheel Hover Unit Combat Airjet Utility Huge Storage Unit Device Seismic Detector Storage Huge Storage Unit Processor Advanced Melee Analysis Suite Hackware Hacking Suite Protection Light Armor Plating Weapon Improved Assault Rifle Energy Gun Particle Gun Energy Cannon Advanced Beam Cannon Ballistic Gun Improved Assault Rifle Ballistic Cannon Bore Cannon Launcher Mini Grenade Launcher Special Weapon Improved Plasma Cutter Impact Weapon Powered Hammer Slashing Weapon Phasing Sabre Piercing Weapon CR-A16's Behemoth Slayer Special Melee Weapon Improved Datajack Build | -11 -10 -10 -9 -9 -9 -8 -8 -8 -8 -7 -7 -7 -7 -6 -6 -6 -6 -6 -5 -5 -5 -5 -5 -5 -4 -4 ------- Run | Yrd Mat Min Mat Min Exi Min Mat Gar Mat Fac Low Low Zio Pro Fac Low Low Dat Pro Fac Ext Cet Arc Hub Fac Upp Slots Evolved 12 | . . . 2 . . . 2 . . 2 . . . . 2 . . . . 2 . . . . 2 . Power 1 | . . . . . . . . . . . . . . . . . . . . 1 . . . . . . Propulsion 4 | . . . 1 . . . 1 . . 1 . . . . 1 . . . . . . . . . . . Utility 6 | . . . 1 . . . . . . 1 . . . . 1 . . . . 1 . . . . 2 . Weapon 1 | . . . . . . . 1 . . . . . . . . . . . . . . . . . . . Parts Attached 235 | 6 16 9 33 5 . 5 34 8 22 15 2 . 3 2 12 4 2 1 5 29 1 3 4 2 12 . Power 26 | 1 3 1 4 . . . 7 . 1 . . . . 1 2 . 1 . 1 4 . . . . . . Engine 24 | 1 3 1 4 . . . 7 . 1 . . . . 1 2 . 1 . 1 2 . . . . . . Core 2 | . . . . . . . . . . . . . . . . . . . . 2 . . . . . . Reactor . | . . . . . . . . . . . . . . . . . . . . . . . . . . . Propulsion 78 | 1 5 2 12 3 . 3 13 4 13 5 . . . . 5 1 . . 1 8 . . . . 2 . Treads 37 | . 2 2 7 2 . . 11 4 9 . . . . . . . . . . . . . . . . . Leg . | . . . . . . . . . . . . . . . . . . . . . . . . . . . Wheel 19 | 1 3 . 5 1 . 3 2 . 4 . . . . . . . . . . . . . . . . . Hover 22 | . . . . . . . . . . 5 . . . . 5 1 . . 1 8 . . . . 2 . Flight . | . . . . . . . . . . . . . . . . . . . . . . . . . . . Utility 69 | 2 4 3 7 1 . 1 8 1 3 6 1 . 2 . 4 1 1 1 1 8 1 1 3 1 8 . Device 29 | 1 2 3 3 . . 1 4 . . 2 1 . 1 . 1 . . 1 . 2 . . 3 . 4 . Storage 5 | 1 2 . . . . . 1 . . 1 . . . . . . . . . . . . . . . . Processor 12 | . . . . . . . . . . 1 . . 1 . 2 . 1 . . 4 . . . . 3 . Hackware 6 | . . . . . . . . . 1 1 . . . . 1 . . . . 1 . . . 1 1 . Protection 17 | . . . 4 1 . . 3 1 2 1 . . . . . 1 . . 1 1 1 1 . . . . Artifact . | . . . . . . . . . . . . . . . . . . . . . . . . . . . Weapon 62 | 2 4 3 10 1 . 1 6 3 5 4 1 . 1 1 1 2 . . 2 9 . 2 1 1 2 . Energy Gun 5 | 1 3 . 1 . . . . . . . . . . . . . . . . . . . . . . . Energy Cannon 11 | . . . 3 . . . 2 . . 1 . . . . . 1 . . 1 2 . . . . 1 . Ballistic Gun 21 | 1 . 2 2 1 . 1 3 2 5 1 . . . . . . . . . 1 . 1 . 1 . . Ballistic Cannon 6 | . . . 1 . . . . . . . 1 . . . 1 . . . . 3 . . . . . . Launcher 6 | . . . 3 . . . . . . . . . . 1 . . . . . 1 . . . . 1 . Special Weapon 2 | . . . . . . . . 1 . . . . . . . . . . . . . 1 . . . . Impact Weapon 5 | . 1 . . . . . . . . 2 . . . . . 1 . . . 1 . . . . . . Slashing Weapon 3 | . . . . . . . 1 . . . . . 1 . . . . . . 1 . . . . . . Piercing Weapon 2 | . . . . . . . . . . . . . . . . . . . 1 . . . 1 . . . Special Melee Weapon 1 | . . 1 . . . . . . . . . . . . . . . . . . . . . . . . Unidentified Prototypes 12 | . . 1 2 . . . 2 . 1 . . . 1 . . . 1 . . 2 . 2 . . . . Corrupted Parts 1 | . . . . . . . . . . . . . . . . . . . . . . 1 . . . . System Corruption 10 | . . . . . . . . . . . . . . . . . . . . . . 10 . . . . Parts Lost 52 | . 5 5 2 . . . . 7 5 . . . . . . . . . 7 6 . . . . 10 5 Power 6 | . 2 1 . . . . . . . . . . . . . . . . 1 1 . . . . 1 . Propulsion 25 | . 2 2 1 . . . . 4 4 . . . . . . . . . 3 3 . . . . 5 1 Utility 11 | . . . 1 . . . . 1 1 . . . . . . . . . 2 2 . . . . 2 2 Weapon 10 | . 1 2 . . . . . 2 . . . . . . . . . . 1 . . . . . 2 2 Highest Loss Streak 14 | . 2 4 1 . . . . 3 2 . . . . . . . . . 7 4 . . . . 10 14 To Critical Strikes . | . . . . . . . . . . . . . . . . . . . . . . . . . . . Average Backups 20 | 5 17 23 24 25 25 24 23 23 23 14 15 15 15 15 14 15 15 15 13 14 13 13 14 13 13 6 Power 1 | . 1 1 2 2 2 2 2 2 1 1 1 1 1 1 1 1 1 1 . . . . . . . . Propulsion 3 | 3 5 4 5 6 6 6 6 5 6 1 1 1 1 1 . 1 1 1 . . . . . . . . Utility 6 | . 5 7 6 6 6 6 6 7 7 6 8 8 7 7 7 7 7 7 6 6 8 8 8 8 8 4 Weapon 6 | 1 5 9 9 9 9 9 6 7 6 4 4 4 4 5 5 5 5 5 5 6 5 5 5 4 4 1 Tool/Special . | . . . . . . . . . . . . . . . . . . . . . . . . . . . Unused Backups 58 | 1 7 4 10 1 . 2 7 1 6 6 . . 1 . 3 . . . . 4 . 1 . . . 4 Power 6 | . 1 . 2 . . . 2 . . . . . . . 1 . . . . . . . . . . . Propulsion 10 | 1 . . 2 . . . 2 1 3 1 . . . . . . . . . . . . . . . . Utility 23 | . 4 2 1 1 . . 2 . 2 2 . . . . 1 . . . . 3 . 1 . . . 4 Weapon 19 | . 2 2 5 . . 2 1 . 1 3 . . 1 . 1 . . . . 1 . . . . . . Tool/Special . | . . . . . . . . . . . . . . . . . . . . . . . . . . . Average Slot Usage (%) 95 | . 98 100 99 100 100 100 99 99 99 99 99 100 99 100 96 92 91 82 76 69 89 89 92 93 91 31 Engine 8 | . 13 14 11 11 11 11 8 9 9 7 7 7 7 7 6 6 6 6 5 2 5 5 5 5 4 . Treads 14 | . 13 14 22 22 22 22 26 30 27 . . . . . . . . . . . . . . . . . Wheel 6 | . 13 13 10 11 11 11 9 5 8 . . . . . . . . . . . . . . . . . Hover 11 | . . . . . . . . . . 36 38 38 38 38 36 33 32 31 23 23 32 33 33 33 29 . Device 8 | . 13 14 11 11 11 11 8 9 9 8 6 6 6 5 4 5 5 6 8 4 3 . 2 4 4 . Storage 8 | . 14 14 11 11 11 11 9 9 9 7 7 7 7 7 6 6 6 6 6 5 5 5 5 5 5 1 Processor 6 | . . . . . . . . . . 6 7 7 11 15 19 20 19 18 14 21 22 22 22 22 29 25 Protection 5 | . . . 10 11 11 11 8 9 8 1 . . . 1 1 . . . . . 1 5 2 . . 2 Energy Cannon 6 | . . . 10 10 11 11 9 9 9 3 4 6 6 . . . . . . 1 . . . 3 3 1 Ballistic Gun 9 | . 13 24 10 7 1 3 17 17 17 10 7 7 4 . . . . . . . . . 5 5 4 . Impact Weapon 1 | . . . . . . . . . . 3 7 7 7 7 6 6 6 6 6 1 4 5 3 5 4 1 Slashing Weapon 1 | . . . . . . . . . . 3 . . 2 7 6 6 6 6 6 5 3 5 5 1 . . Peak Build Rating 109 | 6 11 21 22 22 22 24 35 35 41 58 58 58 63 60 78 78 79 81 83 95 95 96 99 99 109 62 Average Rating 42 | 5 9 10 19 20 21 22 27 32 33 56 56 57 58 58 73 77 78 74 66 66 90 89 94 95 103 31 On Entrance 50 | . 6 11 14 20 21 22 22 32 31 39 50 50 58 54 59 70 71 79 77 59 89 91 96 96 96 43 Naked Turns . | . . . . . . . . . . . . . . . . . . . . . . . . . . . Heaviest Build 111 | 14 90 90 101 101 101 101 110 109 111 109 45 52 64 49 57 50 52 54 56 57 63 64 64 62 66 11 Greatest Support 82 | 16 26 16 60 10 10 16 16 82 80 46 46 46 46 46 62 64 64 64 64 63 63 63 63 63 65 3 Greatest Overweight (x) 11 | . 8 5 10 10 10 10 6 6 11 4 . 1 1 1 . . . . 1 1 . 1 1 . 1 3 Average Overweight (x) 2 | . 3 5 7 9 9 8 6 3 7 . . . . . . . . . . . . . . . . . Largest Inventory Capacity 25 | 8 25 25 25 25 25 25 25 25 25 25 15 15 15 15 15 15 15 15 15 15 15 15 15 15 15 15 Average Capacity 21 | 7 19 25 25 25 25 25 25 25 25 15 15 15 15 15 15 15 15 15 15 15 15 15 15 15 15 6 Most Carried 25 | 8 25 25 25 25 25 25 25 25 25 25 15 15 15 15 15 15 15 15 15 15 15 15 15 15 15 14 Average Carried 20 | 6 17 23 24 24 25 24 24 24 24 15 15 15 14 14 14 15 15 14 13 14 14 14 15 14 14 5 Final Capacity 25 | 8 25 25 25 25 25 25 25 25 25 15 15 15 15 15 15 15 15 15 15 15 15 15 15 15 15 5 Final Carried 25 | 8 25 25 25 25 25 25 25 25 25 15 15 15 15 15 15 15 15 14 14 15 15 15 15 14 15 5 Class Distribution -------------------- 29% | Scavenger-Mutant 21% | Scavenger-Tank 14% | Mutant 12% | Scout 6% | Gladiator 5% | Tank 5% | Commander-Scout Dominant Class ---------------- Mutant | -10/Materials Scavenger-Mutant | -10/Mines Scavenger-Mutant | -9/Materials Scavenger-Mutant | -9/Mines Scavenger-Mutant | -9/Exiles Scavenger-Mutant | -8/Mines Scavenger-Tank | -8/Materials Scavenger-Tank | -8/Garrison Scavenger-Tank | -8/Materials Mutant | -7/Factory Mutant | -7/Lower Caves Mutant | -7/Lower Caves Mutant | -7/Zion Gladiator | -6/Proximity Caves Scout | -6/Factory Scout | -6/Lower Caves Commander-Scout | -6/Lower Caves Commander-Scout | -6/Data Miner Gladiator | -5/Proximity Caves Scout | -5/Factory Scout | -5/Extension Commander-Gladiator | -5/Cetus Commander-Gladiator | -5/Archives Commander-Scout | -5/Hub_04(d) Scout | -4/Factory Mutant | -4/Upper Caves Resources | -11 -10 -10 -9 -9 -9 -8 -8 -8 -8 -7 -7 -7 -7 -6 -6 -6 -6 -6 -5 -5 -5 -5 -5 -5 -4 -4 ----------- Run | Yrd Mat Min Mat Min Exi Min Mat Gar Mat Fac Low Low Zio Pro Fac Low Low Dat Pro Fac Ext Cet Arc Hub Fac Upp Matter Collected 11744 | 275 512 229 1034 240 . 213 1307 712 1202 271 161 164 104 121 453 171 165 . 310 730 1569 248 257 415 868 13 Remotely . | . . . . . . . . . . . . . . . . . . . . . . . . . . . Salvage Created 19836 | 140 1138 149 2661 1198 . 454 2358 1483 2013 385 256 65 . 109 626 137 288 . 304 1304 1830 183 474 435 1808 38 Parts 882 | 12 41 9 139 58 . 22 142 61 116 14 1 4 . 4 15 3 5 . 9 59 47 8 38 11 63 1 Haulers Intercepted 26 | . 2 . 6 . . . 5 . 3 . . . . . . . . . . 3 2 . . 3 2 . Recyclers Shooed 21 | 1 6 . 4 3 . . 1 . 1 . . . . . 1 . . . . 1 1 . . . 2 . Parts Field Recycled . | . . . . . . . . . . . . . . . . . . . . . . . . . . . Retrieved Matter . | . . . . . . . . . . . . . . . . . . . . . . . . . . . Parts Self-Destructed 31 | . . . . . . . . . . . . 3 . 7 . . 10 . 10 . . . . . . 1 Prevented 7 | . . . . . . . . . . . . . . 4 . . . . 3 . . . . . . . Kills | -11 -10 -10 -9 -9 -9 -8 -8 -8 -8 -7 -7 -7 -7 -6 -6 -6 -6 -6 -5 -5 -5 -5 -5 -5 -4 -4 ------- Run | Yrd Mat Min Mat Min Exi Min Mat Gar Mat Fac Low Low Zio Pro Fac Low Low Dat Pro Fac Ext Cet Arc Hub Fac Upp Combat Hostiles Destroyed 259 | . 14 5 33 9 . 5 34 34 34 1 . 4 . 2 6 1 1 . 5 17 23 2 2 1 22 4 Melee 8 | . . . . . . . . . . 1 . . . . 3 . . . . 2 1 . . . 1 . Guns 69 | . 14 5 3 3 . . 15 16 11 . . . . . . . . . . . . . . . 2 . Cannons 87 | . . . 24 3 . 1 13 11 14 . . . . . 2 1 . . . . 9 . 2 . 6 1 AOE 74 | . . . 5 3 . 4 6 7 8 . . 3 . 2 . . 1 . 1 13 10 . . . 8 3 Classes Destroyed 24 | 2 5 1 3 1 . . 2 . 2 1 1 1 . . . 1 . . 2 1 . . . . 1 . Worker 27 | . 1 1 1 3 . 1 3 . 4 2 . . . . 1 . . . . 6 . . . 1 3 . Builder 15 | . 1 . 1 . . 1 . . 4 . . . . . 1 . . . . 3 1 . . . 3 . Tunneler 11 | 3 1 . 2 1 . . . . 1 1 . . . . . . . . . 1 . . . . 1 . Hauler 26 | . 2 . 6 . . . 5 . 3 . . . . . . . . . . 3 2 . . 3 2 . Recycler 57 | 1 5 1 12 11 . 3 7 . 3 3 . . . . 2 . . . . 3 4 . . . 2 . Carrier 1 | . . . . . . . . . . . . . . . . . . . . . . . . . 1 . Mechanic 2 | . . . . 1 . . . . . . . . . . . . . . . . . . . . 1 . Operator 17 | . . . . . . . 2 . 3 . . . . . . . . . . 1 1 . 9 . 1 . Drone 1 | . . . . . . . . . . . . . . . . . . . 1 . . . . . . . Watcher 21 | . 2 . 4 . . . 4 . 1 2 . . . . 1 . . . . 1 2 1 . 2 1 . Swarmer 62 | . . 5 3 . . . 7 10 2 . . 3 . 2 . . . . . 14 4 . . . 8 4 Grunt 114 | . 14 . 19 6 . 6 15 15 22 . . . . . 1 . 1 . 2 1 11 . . . 1 . Brawler 7 | . . . 1 . . . . 1 1 . . . . . . . . . . . 3 . . . 1 . Duelist 6 | . . . 1 2 . . 2 1 . . . . . . . . . . . . . . . . . . Protector 1 | . . . . . . . . . 1 . . . . . . . . . . . . . . . . . Sentry 39 | . . . 9 1 . . 9 4 6 . . . . . 1 . . . 1 . 4 . 2 . 2 . Hunter 13 | . . . . . . . 1 3 1 . . . . . . . . . . . . . . . 8 . Programmer 10 | . . . . . . . . . . 1 . . . . 4 . . . . 2 . . . 1 2 . Heavy 1 | . . . . . . . . . 1 . . . . . . . . . . . . . . . . . Behemoth 1 | . . . . . . . . . . . . . . . . . . . 1 . . . . . . . Cetus Guard 2 | . . . . . . . . . . . . . . . . . . . . . . 2 . . . . Decomposer 2 | . . . . . . . . . . . . 1 . . . . 1 . . . . . . . . . Packrat 4 | . . . . . . . . . . . 2 . . . . 1 1 . . . . . . . . . Samaritan 6 | . . . . . . . . . . . 2 . . 1 . . 3 . . . . . . . . . Thief 1 | . . . . . . . . . . . . 1 . . . . . . . . . . . . . . Thug 1 | . . . . . . . . . . . . . . . . . . . . . 1 . . . . . Guerrilla 1 | . . . . . . . . . . . . . . . . . . . . . 1 . . . . . Fireman 2 | . . . . . . . . . . . . . . . . . . . . 2 . . . . . . Mutant 1 | . . . . . . . . . . . . . . . . 1 . . . . . . . . . . Best Kill Streak 10 | 2 3 3 6 4 . 3 7 7 10 2 . 3 . 2 2 1 1 . 2 8 4 3 9 1 6 3 Combat Bots Only 7 | . 2 3 4 3 . 3 5 7 6 1 . 3 . 2 1 1 1 . 2 5 4 2 1 1 4 3 Max Kills in Single Turn 4 | 1 2 1 3 4 . 2 2 3 2 1 1 2 . 1 1 1 1 . 1 3 4 1 1 1 4 3 Gunslinging . | . . . . . . . . . . . . . . . . . . . . . . . . . . . Exploded 4 | . . . 3 3 . 2 2 3 2 . . 2 . 1 . . 1 . 1 3 4 . . . 4 3 Melee 1 | . . . . . . . . . . 1 . . . . 1 . . . . 1 1 . . . 1 . Uniques/NPCs Destroyed . | . . . . . . . . . . . . . . . . . . . . . . . . . . . Combat | -11 -10 -10 -9 -9 -9 -8 -8 -8 -8 -7 -7 -7 -7 -6 -6 -6 -6 -6 -5 -5 -5 -5 -5 -5 -4 -4 -------- Run | Yrd Mat Min Mat Min Exi Min Mat Gar Mat Fac Low Low Zio Pro Fac Low Low Dat Pro Fac Ext Cet Arc Hub Fac Upp Hostile Shots Fired 1165 | . 81 51 133 10 . 13 122 111 134 7 2 4 . 13 60 . 9 . 67 53 14 18 . 8 141 114 Missed 359 | . 22 12 38 . . 5 34 27 46 2 . 1 . 9 27 . 4 . 17 20 3 7 . 1 49 35 Hits 806 | . 59 39 95 10 . 8 88 84 88 5 2 3 . 4 33 . 5 . 50 33 11 11 . 7 92 79 Melee 14 | . . . 5 6 . . . 3 . . . . . . . . . . . . . . . . . . Projectile 792 | . 59 39 90 4 . 8 88 81 88 5 2 3 . 4 33 . 5 . 50 33 11 11 . 7 92 79 AOE 1 | . . . . . . . . . . . . . . . . . . . . . . . . . 1 . Critical Strikes 41 | . 2 . 3 2 . . 5 4 7 . . . . . 3 . . . 2 1 . 3 . . 3 6 Damage Taken 13837 | . 775 327 1309 296 . 139 1237 1358 1665 92 34 72 . 59 547 . 99 . 1394 662 204 167 . 70 1758 1573 Core 2522 | . 111 51 233 . . 16 171 167 148 15 . . . . 72 . 20 . 152 113 37 24 . 24 294 874 Absorbed by Shields 158 | . . . . . . . . . . . . . . . . . . . . . 27 131 . . . . Regen/Repaired (Parts) 543 | . . . 61 . . . 114 . 113 . . . . . . . . . . 153 102 . . . . . Core Remaining (%) 61 | 100 . 35 . . . 37 . . 11 . . . . 97 . . . . 71 . . . . 80 . . Volleys Fired 1055 | 17 105 18 161 43 . 20 101 91 111 20 6 13 . 8 25 7 3 . 8 43 109 11 9 39 83 4 Largest 3 | 2 2 2 2 2 . 2 3 3 3 2 1 2 . 1 1 1 1 . 1 1 1 1 2 2 2 1 Hottest 130 | 60 85 85 91 91 . 91 121 121 130 115 90 115 . 36 90 48 48 . 85 90 90 36 86 125 90 90 Shots Fired 1895 | 18 209 36 317 72 . 31 288 233 268 26 6 15 . 8 25 7 3 1 9 43 108 11 18 44 95 4 Gun 1031 | 18 209 36 156 28 . 11 187 148 156 6 1 2 . . . . . . . 2 . . 10 31 30 . Cannon 780 | . . . 156 42 . 14 96 81 104 20 5 10 . . 25 7 1 1 8 33 94 . 7 13 60 3 Launcher 83 | . . . 5 2 . 6 5 4 8 . . 3 . 8 . . 2 . 1 8 14 11 . . 5 1 Special 1 | . . . . . . . . . . . . . . . . . . . . . . . 1 . . . Kinetic 1083 | 17 105 25 156 28 . 11 187 148 156 6 1 2 . . 21 7 1 1 7 10 88 . 17 31 58 . Thermal 698 | . 74 11 156 42 . 14 96 81 104 20 5 10 . . 4 . . . 1 25 6 . 1 13 32 3 Explosive 64 | . . . 5 2 . 6 5 4 8 . . 3 . . . . 2 . 1 8 14 . . . 5 1 Electromagnetic 50 | 1 30 . . . . . . . . . . . . 8 . . . . . . . 11 . . . . Robot Hit Streak 27 | 7 13 6 20 11 . 10 12 27 20 5 . 1 . . 3 6 4 . 7 15 12 . 2 4 14 1 Robot Miss Streak 6 | 3 6 2 4 2 . 2 3 4 3 5 . 2 . . 4 2 . . 1 2 5 . 3 4 4 1 Penetration Max 1 | . . . . . . . . . 1 . . . . . . . . . 1 1 1 . 1 1 1 . Secondary Targets 1 | . 1 . . . . . . . . . . . . . . . . . . . . . . . . . Max Gunslinging Chain 1 | . 1 . . . . . . . . . . . . . . . . . . . . . . . . . Shots Hit Robots 1236 | 11 125 26 197 48 4 21 169 153 145 19 4 3 . 1 43 7 12 . 28 49 48 . 15 29 75 4 Core Hits 653 | 6 48 10 84 28 . 17 87 71 85 8 2 6 . 6 8 1 6 . 7 43 57 18 10 9 31 5 Critical Kills 41 | . . . 1 . . . 1 . 3 . 1 1 . . 2 1 . . . 3 14 . 2 1 11 . Critical Parts Destroyed 51 | . . . . . . . . . 1 1 . 1 . . 4 1 1 . 5 6 18 . 1 3 9 . Critical Strikes 104 | . 2 1 1 . . . 1 . 4 1 1 2 . . 7 2 1 . 7 9 35 . 3 5 22 . Burn 3 | . 2 1 . . . . . . . . . . . . . . . . . . . . . . . . Meltdown 3 | . . . 1 . . . 1 . 1 . . . . . . . . . . . . . . . . . Destroy 72 | . . . . . . . . . 3 . . . . . 6 1 1 . 3 6 32 . 3 2 15 . Smash 23 | . . . . . . . . . . 1 1 2 . . 1 1 . . 2 3 2 . . 3 7 . Sever 2 | . . . . . . . . . . . . . . . . . . . 1 . 1 . . . . . Impale 1 | . . . . . . . . . . . . . . . . . . . 1 . . . . . . . Melee Attacks 378 | . 4 . . . 4 . 4 . . 40 9 7 . 1 66 4 14 . 36 81 22 . 13 21 48 4 Impact 191 | . 4 . . . . . . . . 19 9 7 . 1 39 3 1 . 13 18 15 . . 10 48 4 Slashing 164 | . . . . . . . 4 . . 21 . . . . 27 1 13 . 6 63 7 . 12 10 . . Piercing 19 | . . . . . . . . . . . . . . . . . . . 17 . . . 1 1 . . Sneak Attacks 72 | . 1 . . . 4 . . . . 6 4 1 . 1 7 1 7 . . 12 4 . 8 5 11 . Combat Hostiles 6 | . . . . . . . . . . . . . . . 3 . . . . . 2 . . . 1 . Follow-up Attacks 23 | . . . . . . . . . . . . . . . 6 . 1 . 8 4 3 . . 1 . . Damage Inflicted 42454 | 94 1622 264 3732 1354 . 930 3774 3199 4432 948 351 430 . 324 2067 155 1069 . 1093 4138 4308 738 1381 1145 4437 469 Guns 7882 | 94 1469 264 917 271 . 115 1619 1143 1535 16 . 15 . . . . . . . 69 . . 105 98 152 . Cannons 10089 | . . . 2308 681 . 190 1588 1493 1561 142 . . . . 241 31 26 . 122 435 732 . 61 166 276 36 Explosions 10833 | . 57 . 507 402 . 625 567 563 1336 . . 273 . 202 . . 258 . 43 1591 2526 738 . . 827 318 Melee 13630 | . 96 . . . . . . . . 790 351 142 . 122 1826 124 785 . 928 2043 1050 . 1215 881 3162 115 Ramming 20 | . . . . . . . . . . . . . . . . . . . . . . . . . 20 . Kinetic 8456 | 82 490 144 917 271 . 115 1619 1143 1535 16 . 15 . . 241 31 26 . 122 265 732 . 166 98 428 . Thermal 9563 | . 766 120 2308 738 . 190 1588 1493 1561 142 . . . . . . . . . 239 . 216 . 166 . 36 Explosive 9779 | . . . 507 345 . 625 567 563 1336 . . 273 . . . . 258 . 43 1591 2526 . . . 827 318 Electromagnetic 1006 | 12 270 . . . . . . . . . . . . 202 . . . . . . . 522 . . . . Impact 8177 | . 96 . . . . . . . . 353 351 142 . 122 1384 124 49 . 441 470 842 . . 526 3162 115 Slashing 5114 | . . . . . . . . . . 437 . . . . 442 . 736 . 177 1573 208 . 1215 326 . . Piercing 339 | . . . . . . . . . . . . . . . . . . . 310 . . . . 29 . . Highest Corruption 14 | . 2 2 . . . . 1 1 1 1 1 1 1 . 5 5 5 5 5 4 4 14 14 . 1 9 Average Corruption 2 | . 2 2 . . . . 1 1 1 1 1 1 1 . 2 5 5 5 5 2 4 5 10 . 1 6 Corruption Purged 15 | . . . . . . . . . . . . . . . 1 . . . . . . . 14 . . . Corruption Blocked . | . . . . . . . . . . . . . . . . . . . . . . . . . . . Effects 242 | . 23 16 . . . . 15 13 17 3 1 3 1 . 16 13 10 3 29 20 39 7 13 . . . Message Errors 51 | . 6 2 . . . . 2 1 5 2 . . . . 5 2 3 1 6 2 13 . 1 . . . Matter Fused 72 | . 7 6 . . . . 5 5 5 . . 3 1 . 3 5 2 1 7 9 6 3 4 . . . Heat Flow Errors 30 | . 3 3 . . . . . . 3 . . . . . 2 3 1 . 3 2 7 3 . . . . Energy Discharges 25 | . 1 2 . . . . 1 2 1 . . . . . 2 1 2 . 4 2 3 . 4 . . . Parts Rejected 1 | . . . . . . . . . . . . . . . . . . . . . 1 . . . . . Parts Fused 2 | . . . . . . . 1 . . . . . . . . . . . . . 1 . . . . . Data Loss (minor) 33 | . 2 1 . . . . 4 2 1 1 1 . . . 3 1 1 . 4 4 4 1 3 . . . Data Loss (major) 10 | . . 1 . . . . 1 1 1 . . . . . . . 1 . 2 1 2 . . . . . Misfires 11 | . 3 1 . . . . 1 2 1 . . . . . . . . 1 1 . . . 1 . . . Alerts 5 | . . . . . . . . . . . . . . . 1 1 . . 2 . 1 . . . . . Weapon Failures 2 | . 1 . . . . . . . . . . . . . . . . . . . 1 . . . . . Overload Shots . | . . . . . . . . . . . . . . . . . . . . . . . . . . . Overflow Damage 4959 | . 56 . 40 5 . . 40 9 37 208 119 49 . 120 512 48 251 . 130 637 370 . 626 252 1360 90 Projectiles 187 | . . . 38 5 . . 34 . 17 5 . . . . 1 . . . . 28 . . . 26 33 . Explosions 137 | . . . 2 . . . 6 9 20 . . . . . . . . . . 29 23 . . . 46 2 Melee 4635 | . 56 . . . . . . . . 203 119 49 . 120 511 48 251 . 130 580 347 . 626 226 1281 88 Knockbacks 53 | . 1 . . . . . . . . . . 1 . 1 12 1 1 . 2 4 13 . . 1 15 1 Impact 42 | . 1 . . . . . . . . . . 1 . 1 12 1 1 . 2 2 7 . . 1 12 1 Kinetic 7 | . . . . . . . . . . . . . . . . . . . . 2 4 . . . 1 . Secondary 4 | . . . . . . . . . . . . . . . . . . . . . 2 . . . 2 . Self-Inflicted Damage 261 | . . . 11 54 . . . 29 30 . . 25 . . . . . . . 27 . . . . 10 75 Shots 9 | . . . 1 1 . . . 2 2 . . 1 . . . . . . . 1 . . . . . 1 Rammed 1 | . . . . . . . . . . . . . . . . . . . . . . . . . 1 . Targets Rammed 1 | . . . . . . . . . . . . . . . . . . . . . . . . . 1 . Kicked . | . . . . . . . . . . . . . . . . . . . . . . . . . . . Crushed . | . . . . . . . . . . . . . . . . . . . . . . . . . . . Highest Temperature 390 | 20 288 235 252 132 . 156 254 226 390 189 72 141 . . 218 244 156 16 319 168 224 229 30 105 240 8 Average Temperature 52 | 15 53 74 49 36 . 47 39 82 52 77 34 67 . . 41 95 57 10 94 53 39 92 14 37 58 4 Received Heat Transfer 3483 | . 474 . 516 24 . 72 585 477 639 . . . . . . . 30 . 497 27 81 4 . . 57 . Effects 3 | . . . 1 . . . . . . . . . . . . . . . . . 1 . . . 1 . Energy Bleed 2 | . . . . . . . . . . . . . . . . . . . . . 1 . . . 1 . Interference 1 | . . . 1 . . . . . . . . . . . . . . . . . . . . . . . Siege Activations . | . . . . . . . . . . . . . . . . . . . . . . . . . . . Martial Activations . | . . . . . . . . . . . . . . . . . . . . . . . . . . . Shielding Activations . | . . . . . . . . . . . . . . . . . . . . . . . . . . . Robots Disrupted . | . . . . . . . . . . . . . . . . . . . . . . . . . . . Combat Hostiles . | . . . . . . . . . . . . . . . . . . . . . . . . . . . Robots Corrupted 35 | . . . . . . . . . . . 2 1 . 1 4 . . . 3 2 6 2 . 2 12 . Combat Hostiles 17 | . . . . . . . . . . . . 1 . . 1 . . . 3 2 3 2 . . 5 . Parts Fried 51 | . 3 . . . . . . . . 2 3 1 . 3 5 . . . . 3 13 1 . 1 16 . Impact Corruptions 119 | . 3 . . . . . . . . 7 10 2 . 9 20 1 . . 4 9 13 . . 6 33 2 Robots Melted 4 | . . . 1 . . . 1 . 1 . . . . . . . . . . . . . . 1 . . Combat Hostiles 3 | . . . 1 . . . . . 1 . . . . . . . . . . . . . . 1 . . Parts Melted 22 | . 1 . 7 2 . . 2 2 7 . . . . . . . . . . . . . . 1 . . Heat Transferred 15953 | . 1974 370 4329 1234 . 333 2479 2183 2257 200 . . . . . . . . . 259 . 150 . 148 . 37 Parts Sabotaged . | . . . . . . . . . . . . . . . . . . . . . . . . . . . Parts Stolen . | . . . . . . . . . . . . . . . . . . . . . . . . . . . Parts Stripped . | . . . . . . . . . . . . . . . . . . . . . . . . . . . Power Chain Reactions 3 | . 1 . . . . . . . . . . . . . . . . . . . . 2 . . . . Alert | -11 -10 -10 -9 -9 -9 -8 -8 -8 -8 -7 -7 -7 -7 -6 -6 -6 -6 -6 -5 -5 -5 -5 -5 -5 -4 -4 ------- Run | Yrd Mat Min Mat Min Exi Min Mat Gar Mat Fac Low Low Zio Pro Fac Low Low Dat Pro Fac Ext Cet Arc Hub Fac Upp Maximum Alert Level 4 | . . . 1 . . . 2 4 3 2 . . . . . . . . . 2 4 3 2 3 3 . Low Security (%) 49 | 100 100 100 98 100 . 100 31 . . 3 . . . . 100 . . . . 31 . . . 17 . . Level 1 21 | . . . 1 . . . 67 20 . 94 . . . . . . . . . 46 39 . 41 34 4 . Level 2 15 | . . . . . . . . 32 60 2 . . . . . . . . . 22 26 8 58 26 52 . Level 3 11 | . . . . . . . . 26 39 . . . . . . . . . . . 27 91 . 22 43 . Level 4 2 | . . . . . . . . 20 . . . . . . . . . . . . 7 . . . . . Level 5 . | . . . . . . . . . . . . . . . . . . . . . . . . . . . High Security . | . . . . . . . . . . . . . . . . . . . . . . . . . . . Max Security . | . . . . . . . . . . . . . . . . . . . . . . . . . . . Peak Influence 1511 | 10 156 72 251 165 . 110 403 1511 884 401 . . . . 154 . . . . 657 1235 865 500 828 819 . Initial 736 | . . 57 . 62 . . 2 196 736 401 . . . . 72 . . . . . 316 655 334 116 331 . Average 305 | 1 38 14 107 59 . 29 239 772 657 267 . . . . 57 . . . . 293 581 769 415 451 596 . Influence Increases 13613 | 20 562 202 1203 475 . 270 1200 1405 1228 171 . 70 . 206 455 . 94 . 210 1209 1923 350 286 1014 970 90 Destroy 0b10 Robot/C 6720 | . 280 160 660 260 . 140 680 720 720 20 . 60 . 120 200 . 60 . 140 460 960 160 80 260 500 80 Destroy 0b10 Robot/NC 950 | 20 60 10 130 80 . 25 105 10 115 40 . . . . 25 . . . 10 95 55 10 45 45 70 . Destroy Leader 1374 | . 68 20 200 50 . 30 188 30 192 14 . 10 . 20 92 . 10 . 20 88 94 . . 122 116 10 Allied During Kill 1447 | . . 8 1 26 . 34 3 27 18 . . . . 51 45 . 24 . 25 44 422 110 125 424 60 . Successful Hack 165 | . 11 4 66 . . . 31 14 15 . . . . . . . . . . 6 6 . . . 12 . Select Force Hacks 120 | . 60 . 60 . . . . . . . . . . . . . . . . . . . . . . . Disable Machine 630 | . 30 . 45 30 . . 90 15 30 . . . . . 15 . . . . 135 60 15 30 105 30 . Anti-Garrison Action 550 | . . . . . . . . 550 . . . . . . . . . . . . . . . . . . Destroy Structure 1027 | . 8 . 41 29 . 41 58 24 108 37 . . . . 33 . . . . 246 206 40 6 58 92 . Partial Spotted 105 | . 15 . . . . . . . . 15 . . . . . . . . . 30 . . . . 45 . Lose Combat Pursuer 525 | . 30 . . . . . 45 15 30 45 . . . 15 45 . . . 15 105 120 15 . . 45 . Influence Decreases 13147 | 20 415 349 1042 636 . 262 905 197 1857 861 192 70 . 90 537 34 94 . 210 562 1399 686 787 672 905 365 Entered New Map 3874 | . . 90 . 99 . . 6 107 775 481 72 . . . 44 14 . . . . 331 516 501 218 345 275 Time Decay 7011 | 20 375 239 721 537 . 222 729 . 692 380 120 70 . 70 433 20 94 . 139 452 568 150 246 254 440 40 Lost Part 421 | . 40 20 20 . . . . 70 50 . . . . . . . . . 11 60 . . . . 100 50 Lost Ally 1091 | . . . 1 . . 40 20 20 40 . . . . 20 60 . . . 60 50 500 20 40 200 20 . Purge Threat 750 | . . . 300 . . . 150 . 300 . . . . . . . . . . . . . . . . . Squads Dispatched 57 | . 7 . 4 1 . . 4 . 7 3 . . . . 5 . . . . 9 4 . . 3 10 . Investigation 18 | . 6 . 4 . . . 1 . 1 1 . . . . 1 . . . . 2 . . . . 2 . Extermination 12 | . . . . . . . . . . 2 . . . . 3 . . . . 3 . . . 2 2 . Reinforcement 17 | . 1 . . . . . 2 . 4 . . . . . 1 . . . . 2 2 . . 1 4 . Assault 8 | . . . . 1 . . . . 2 . . . . . . . . . . 2 2 . . . 1 . Garrison 2 | . . . . . . . 1 . . . . . . . . . . . . . . . . . 1 . Intercept . | . . . . . . . . . . . . . . . . . . . . . . . . . . . Searches Triggered . | . . . . . . . . . . . . . . . . . . . . . . . . . . . Construction Impeded 5 | . . . . . . . 1 . . . . . . . . . . . . 1 1 . . . 2 . Haulers Reinforced . | . . . . . . . . . . . . . . . . . . . . . . . . . . . Active Scanning Responses . | . . . . . . . . . . . . . . . . . . . . . . . . . . . Cargo Convoy Interrupts 1 | . . . . . . . . . . . . . . . . . . . . 1 . . . . . . Stealth | -11 -10 -10 -9 -9 -9 -8 -8 -8 -8 -7 -7 -7 -7 -6 -6 -6 -6 -6 -5 -5 -5 -5 -5 -5 -4 -4 --------- Run | Yrd Mat Min Mat Min Exi Min Mat Gar Mat Fac Low Low Zio Pro Fac Low Low Dat Pro Fac Ext Cet Arc Hub Fac Upp Distress Signals 29 | . 4 . 3 . . . 5 . 6 1 . . . . . . . . . 2 4 1 . 2 1 . Communications Jammed 69 | . . . . . . . . . . 6 . . . . . . . . . 14 30 . . 1 18 . Distress Signals 50 | . . . . . . . . . . 6 . . . . . . . . . 14 30 . . . . . Times Spotted 417 | . 31 6 47 13 . 7 47 36 47 5 1 5 . 4 13 . 4 . 6 31 35 9 11 16 37 6 Peak Tracking Total 11 | . 4 3 5 4 . 3 5 5 7 4 1 3 . 3 3 . 4 . 3 9 11 5 1 3 5 6 Tactical Retreats 25 | . 2 . . . . . 2 1 2 1 . . . 1 3 . . . 1 5 4 1 . . 2 . Traps | -11 -10 -10 -9 -9 -9 -8 -8 -8 -8 -7 -7 -7 -7 -6 -6 -6 -6 -6 -5 -5 -5 -5 -5 -5 -4 -4 ------- Run | Yrd Mat Min Mat Min Exi Min Mat Gar Mat Fac Low Low Zio Pro Fac Low Low Dat Pro Fac Ext Cet Arc Hub Fac Upp Traps Triggered 29 | . 5 1 2 . . . 2 9 . 1 . . . . 2 . . . . 2 4 . . 1 . . Indirectly . | . . . . . . . . . . . . . . . . . . . . . . . . . . . Trap Hack Attempts 27 | . . 13 14 . . . . . . . . . . . . . . . . . . . . . . . Triggered . | . . . . . . . . . . . . . . . . . . . . . . . . . . . Disarmed . | . . . . . . . . . . . . . . . . . . . . . . . . . . . Reprogrammed 2 | . . 1 1 . . . . . . . . . . . . . . . . . . . . . . . Reused . | . . . . . . . . . . . . . . . . . . . . . . . . . . . Traps Extracted 2 | . . 1 1 . . . . . . . . . . . . . . . . . . . . . . . Installed . | . . . . . . . . . . . . . . . . . . . . . . . . . . . Triggered . | . . . . . . . . . . . . . . . . . . . . . . . . . . . Most Traps Carried 2 | . . 1 2 2 2 2 2 . . . . . . . . . . . . . . . . . . . Machines | -11 -10 -10 -9 -9 -9 -8 -8 -8 -8 -7 -7 -7 -7 -6 -6 -6 -6 -6 -5 -5 -5 -5 -5 -5 -4 -4 ---------- Run | Yrd Mat Min Mat Min Exi Min Mat Gar Mat Fac Low Low Zio Pro Fac Low Low Dat Pro Fac Ext Cet Arc Hub Fac Upp Machines Disabled 49 | . 2 . 4 2 . . 6 4 2 . . . . . 1 1 . . . 9 6 1 2 7 2 . Max in Single Turn 6 | . 1 . 1 2 . . 2 1 1 . . . . . . 1 . . . 6 2 1 1 1 1 . Garrison Access 3 | . . . . . . . . . 1 . . . . . . . . . . 2 . . . . . . Garrison Relay 2 | . . . . . . . . 2 . . . . . . . . . . . . . . . . . . Phase Generator 1 | . . . . . . . . 1 . . . . . . . . . . . . . . . . . . Network Hub 1 | . . . . . . . . . . . . . . . . . . . . . . . . 1 . . Machines Repaired . | . . . . . . . . . . . . . . . . . . . . . . . . . . . Machines Dismantled 5 | . . . . . . . . 2 . . . . . . . . . . . . 1 1 . 1 . . Machines Sabotaged . | . . . . . . . . . . . . . . . . . . . . . . . . . . . Overloaded Fab Kills . | . . . . . . . . . . . . . . . . . . . . . . . . . . . Hacking | -11 -10 -10 -9 -9 -9 -8 -8 -8 -8 -7 -7 -7 -7 -6 -6 -6 -6 -6 -5 -5 -5 -5 -5 -5 -4 -4 --------- Run | Yrd Mat Min Mat Min Exi Min Mat Gar Mat Fac Low Low Zio Pro Fac Low Low Dat Pro Fac Ext Cet Arc Hub Fac Upp Machines Accessed 86 | . 8 2 15 . 1 . 11 2 8 8 1 2 . . 3 2 1 4 . 9 1 1 . 1 6 . Terminals 36 | . 6 1 11 . . . 8 2 5 2 . . . . . . . . . . . 1 . . . . Fabricators 8 | . . . . . . . . . . 2 . . . . 1 . . . . 3 . . . . 2 . Repair Stations 6 | . . . 1 . . . 1 . 1 . . . . . . . . . . 2 1 . . . . . Recycling Units 13 | . 2 . 2 . . . . . . 2 . . . . 2 . . . . 3 . . . . 2 . Scanalyzers 5 | . . . 1 . . . 1 . 1 1 . . . . . . . . . . . . . . 1 . Garrison Access 6 | . . . . . . . 1 . 1 1 . . . . . . . . . 1 . . . 1 1 . Total Hacks 250 | . 21 6 41 . 23 . 26 3 26 16 1 6 . . 5 4 4 29 . 17 2 1 . 1 18 . Successful 160 | . 8 2 25 . 23 . 14 1 12 8 1 6 . . 3 4 4 29 . 10 2 . . . 8 . Failed 88 | . 13 4 15 . . . 12 2 13 8 . . . . 2 . . . . 7 . 1 . 1 10 . Catastrophic 16 | . 3 1 . . . . 2 1 1 2 . . . . 1 . . . . . . 1 . . 4 . Database Lockouts 2 | . . . 1 . . . . . 1 . . . . . . . . . . . . . . . . . Manual 142 | . 17 5 21 . . . 15 . 16 5 . . . . 7 . . . . 23 2 1 . 17 13 . Terminals 96 | . 17 5 29 . . . 19 3 18 4 . . . . . . . . . . . 1 . . . . Fabricators 23 | . . . . . . . . . . 3 . . . . 3 . . . . 7 . . . . 10 . Repair Stations 17 | . . . 2 . . . 4 . 4 . . . . . . . . . . 5 2 . . . . . Recycling Units 24 | . 4 . 8 . . . . . . 3 . . . . 2 . . . . 4 . . . . 3 . Scanalyzers 13 | . . . 2 . . . 2 . 2 3 . . . . . . . . . . . . . . 4 . Garrison Access 9 | . . . . . . . 1 . 2 3 . . . . . . . . . 1 . . . 1 1 . Terminal Hacks 95 | . 3 2 12 . 23 . 6 1 4 . 1 6 . . . 4 4 29 . . . . . . . . Record 46 | . . . . . 23 . . . . . . 5 . . . 3 4 11 . . . . . . . . Part Schematic 14 | . . . . . . . 1 . . . . . . . . . . 13 . . . . . . . . Robot Schematic 3 | . . . 1 . . . . . . . . . . . . . . 2 . . . . . . . . Robot Analysis 7 | . 2 . 2 . . . 3 . . . . . . . . . . . . . . . . . . . Prototype ID Bank 6 | . . . 1 . . . 1 . 1 . . . . . . . . 3 . . . . . . . . Open Door 4 | . . 1 . . . . . . . . 1 1 . . . 1 . . . . . . . . . . Emergency Access Points 1 | . . . 1 . . . . . . . . . . . . . . . . . . . . . . . Machine Index 1 | . . . 1 . . . . . . . . . . . . . . . . . . . . . . . Scanalyzer Index 1 | . . . . . . . . . 1 . . . . . . . . . . . . . . . . . Alert Level 1 | . 1 . . . . . . . . . . . . . . . . . . . . . . . . . Unreport Threat 5 | . . . 2 . . . 1 . 2 . . . . . . . . . . . . . . . . . Locate Traps 4 | . . . 4 . . . . . . . . . . . . . . . . . . . . . . . Maintenance Status 1 | . . 1 . . . . . . . . . . . . . . . . . . . . . . . . Patrol Navigation 1 | . . . . . . . . 1 . . . . . . . . . . . . . . . . . . Fabricator Hacks 10 | . . . . . . . . . . 1 . . . . 2 . . . . 3 . . . . 4 . Network Status 1 | . . . . . . . . . . . . . . . . . . . . . . . . . 1 . Load Schematic 6 | . . . . . . . . . . 1 . . . . 1 . . . . 2 . . . . 2 . Build 3 | . . . . . . . . . . . . . . . 1 . . . . 1 . . . . 1 . Repair Station Hacks 11 | . . . 2 . . . 2 . 3 . . . . . . . . . . 2 2 . . . . . Scan Component 6 | . . . 1 . . . 1 . 2 . . . . . . . . . . 1 1 . . . . . Repair 5 | . . . 1 . . . 1 . 1 . . . . . . . . . . 1 1 . . . . . Recycling Unit Hacks 9 | . 1 . 3 . . . . . . 2 . . . . 1 . . . . 2 . . . . . . Retrieve Components 9 | . 1 . 3 . . . . . . 2 . . . . 1 . . . . 2 . . . . . . Scanalyzer 11 | . . . 2 . . . 1 . 2 3 . . . . . . . . . . . . . . 3 . Insert Component 8 | . . . 2 . . . 1 . 1 2 . . . . . . . . . . . . . . 2 . Analyze 3 | . . . . . . . . . 1 1 . . . . . . . . . . . . . . 1 . Garrison Access Hacks 3 | . . . . . . . 1 . 1 . . . . . . . . . . 1 . . . . . . Unlock Access 1 | . . . . . . . 1 . . . . . . . . . . . . . . . . . . . Seal Access 2 | . . . . . . . . . 1 . . . . . . . . . . 1 . . . . . . Unauthorized Hacks 21 | . 4 . 6 . . . 4 . 2 2 . . . . . . . . . 2 . . . . 1 . Terminals 13 | . 2 . 4 . . . 4 . 2 1 . . . . . . . . . . . . . . . . Assimilate 1 | . . . . . . . 1 . . . . . . . . . . . . . . . . . . . Botnet 10 | . 2 . 3 . . . 2 . 2 1 . . . . . . . . . . . . . . . . Operators 2 | . . . 1 . . . 1 . . . . . . . . . . . . . . . . . . . Fabricators 3 | . . . . . . . . . . 1 . . . . . . . . . 1 . . . . 1 . Recompile 3 | . . . . . . . . . . 1 . . . . . . . . . 1 . . . . 1 . Repair Stations 1 | . . . . . . . . . . . . . . . . . . . . 1 . . . . . . Patch 1 | . . . . . . . . . . . . . . . . . . . . 1 . . . . . . Recycling Units 4 | . 2 . 2 . . . . . . . . . . . . . . . . . . . . . . . Tunnel 4 | . 2 . 2 . . . . . . . . . . . . . . . . . . . . . . . Scanalyzers . | . . . . . . . . . . . . . . . . . . . . . . . . . . . Garrison Access . | . . . . . . . . . . . . . . . . . . . . . . . . . . . Data Cores Recovered . | . . . . . . . . . . . . . . . . . . . . . . . . . . . Used . | . . . . . . . . . . . . . . . . . . . . . . . . . . . Hacking Detections 59 | . 7 1 13 . . . 10 2 8 6 . . . . 2 . . . . 4 . 1 . 1 4 . Full Trace Events 2 | . 1 . . . . . . . 1 . . . . . . . . . . . . . . . . . Feedback Events . | . . . . . . . . . . . . . . . . . . . . . . . . . . . Feedback Blocked . | . . . . . . . . . . . . . . . . . . . . . . . . . . . Robot Schematics Acquired 6 | . . . 1 . . . . . . . . . 3 . . . . 2 . . . . . . . . Robots Built . | . . . . . . . . . . . . . . . . . . . . . . . . . . . Authchips . | . . . . . . . . . . . . . . . . . . . . . . . . . . . Time . | . . . . . . . . . . . . . . . . . . . . . . . . . . . Total Robot Build Rating . | . . . . . . . . . . . . . . . . . . . . . . . . . . . Part Schematics Acquired 43 | . . . . . . . 1 . 1 1 . . 15 . 11 . . 13 . . . . . . 1 . Parts Built 4 | . . . . . . . . . . . . . . . 2 . . . . 1 . . . . 1 . Authchips 3 | . . . . . . . . . . . . . . . 1 . . . . 1 . . . . 1 . Time 174 | . . . . . . . . . . . . . . . 31 . . . . 67 . . . . 76 . Total Part Build Rating 19 | . . . . . . . . . . . . . . . 10 . . . . 4 . . . . 5 . Parts Repaired 5 | . . . 1 . . . 1 . 1 . . . . . . . . . . 1 1 . . . . . Time 195 | . . . 26 . . . 16 . 53 . . . . . . . . . . 50 50 . . . . . Parts Recycled . | . . . . . . . . . . . . . . . . . . . . . . . . . . . Recycled Matter . | . . . . . . . . . . . . . . . . . . . . . . . . . . . Retrieved Matter . | . . . . . . . . . . . . . . . . . . . . . . . . . . . Retrieved Components 52 | . . . 25 . . . . . . 11 . . . . 7 . . . . 9 . . . . . . Parts Scanalyzed 3 | . . . . . . . . . 1 1 . . . . . . . . . . . . . . 1 . Part Schematics Acquired 3 | . . . . . . . . . 1 1 . . . . . . . . . . . . . . 1 . Parts Damaged 1 | . . . . . . . . . . . . . . . . . . . . . . . . . 1 . Bothacking | -11 -10 -10 -9 -9 -9 -8 -8 -8 -8 -7 -7 -7 -7 -6 -6 -6 -6 -6 -5 -5 -5 -5 -5 -5 -4 -4 ------------ Run | Yrd Mat Min Mat Min Exi Min Mat Gar Mat Fac Low Low Zio Pro Fac Low Low Dat Pro Fac Ext Cet Arc Hub Fac Upp Used RIF Installer . | . . . . . . . . . . . . . . . . . . . . . . . . . . . Robots Hacked 4 | . . . . . 4 . . . . . . . . . . . . . . . . . . . . . Non-combat 3 | . . . . . 3 . . . . . . . . . . . . . . . . . . . . . Combat 1 | . . . . . 1 . . . . . . . . . . . . . . . . . . . . . Robot Hacks Applied 4 | . . . . . 4 . . . . . . . . . . . . . . . . . . . . . parse_system 4 | . . . . . 4 . . . . . . . . . . . . . . . . . . . . . Relay Couplers Released 17 | . . . . . . . . 8 . . . . . . 3 . . . . 2 . . . 4 . . Machine Destruction 10 | . . . . . . . . 8 . . . . . . . . . . . 2 . . . . . . Programmers 7 | . . . . . . . . . . . . . . . 3 . . . . . . . . 4 . . Fabnet Peak Effective % . | . . . . . . . . . . . . . . . . . . . . . . . . . . . Robots Rewired 26 | . . . . . . . . 3 . . . . . . . 4 . . . . 19 . . . . . Allies Hacked . | . . . . . . . . . . . . . . . . . . . . . . . . . . . Hacks Repelled . | . . . . . . . . . . . . . . . . . . . . . . . . . . . Allies | -11 -10 -10 -9 -9 -9 -8 -8 -8 -8 -7 -7 -7 -7 -6 -6 -6 -6 -6 -5 -5 -5 -5 -5 -5 -4 -4 -------- Run | Yrd Mat Min Mat Min Exi Min Mat Gar Mat Fac Low Low Zio Pro Fac Low Low Dat Pro Fac Ext Cet Arc Hub Fac Upp Total Allies 70 | . . 2 . 4 . . . 3 . . . 2 4 . . 4 . . . 5 32 5 . 8 1 . Largest Group 11 | . . 2 1 4 4 4 1 3 2 . . 2 4 4 3 4 4 4 4 4 11 8 7 11 1 . Highest-Rated Group 739 | . . 43 12 71 68 68 13 98 78 . . 56 154 154 114 116 116 113 113 112 443 685 589 739 141 . Highest-Rated Ally 159 | . . 31 12 31 31 31 13 39 39 . . 31 40 40 39 29 29 29 29 28 159 146 146 96 141 . Zionite Dispatches 8 | . . . . . . . . . . . . . . . . . . . . 3 1 . . 3 1 . Heavy 2 | . . . . . . . . . . . . . . . . . . . . . . . . 2 . . Recon 1 | . . . . . . . . . . . . . . . . . . . . 1 . . . . . . Fire 2 | . . . . . . . . . . . . . . . . . . . . 1 . . . 1 . . Hacker 1 | . . . . . . . . . . . . . . . . . . . . . 1 . . . . . Hero 1 | . . . . . . . . . . . . . . . . . . . . . . . . . 1 . Defense Resupply 1 | . . . . . . . . . . . . . . . . . . . . 1 . . . . . . Initial Warlord ECA Mod 21 | . . . . . . . . . 5 4 4 4 4 . . . . . . . . . . . . . Total Orders 17 | . . . . . . . . . 10 2 . . . . . . . . 1 2 2 . . . . . STAY 8 | . . . . . . . . . 5 . . . . . . . . . 1 1 1 . . . . . FOLLOW 6 | . . . . . . . . . 5 . . . . . . . . . . . 1 . . . . . DROP 1 | . . . . . . . . . . . . . . . . . . . . 1 . . . . . . EXPLORE 1 | . . . . . . . . . . 1 . . . . . . . . . . . . . . . . RETURN 1 | . . . . . . . . . . 1 . . . . . . . . . . . . . . . . Ally Attacks 611 | . . 11 . 30 . 30 . 19 26 . . 8 . 15 12 . 26 . 47 23 210 47 18 75 14 . Total Damage 14227 | . . 193 . 474 . 341 . 137 339 . . 56 . 484 292 . 434 . 564 380 4908 1193 588 3160 684 . Kills 93 | . . 3 . 4 . 2 . 2 6 . . . . 4 4 . 2 . 4 7 28 7 2 16 2 . Allies Corrupted 8 | . . . . . . . . . . . . . . . . . . . . 1 1 . . 6 . . Allies Melted . | . . . . . . . . . . . . . . . . . . . . . . . . . . . Intel | -11 -10 -10 -9 -9 -9 -8 -8 -8 -8 -7 -7 -7 -7 -6 -6 -6 -6 -6 -5 -5 -5 -5 -5 -5 -4 -4 ------- Run | Yrd Mat Min Mat Min Exi Min Mat Gar Mat Fac Low Low Zio Pro Fac Low Low Dat Pro Fac Ext Cet Arc Hub Fac Upp Active Infowar (turns) 25101 | 61 1324 1103 3066 1558 1102 570 2464 783 1655 835 294 367 635 335 1060 556 473 71 879 1639 1705 305 536 541 1098 86 Optics 3622 | . . . . . . . . . . . . . . . 1051 556 473 71 344 . . . . . 1041 86 Sensors 8844 | . . 1 . . . . . . . 785 294 367 635 335 791 545 460 67 784 1342 1273 11 9 360 785 . Traps 169 | . . 169 . . . . . . . . . . . . . . . . . . . . . . . . Seismic 13516 | 61 1324 933 3066 1558 1102 570 2464 783 1655 . . . . . . . . . . . . . . . . . T.N.C. 5714 | . . . . . . . . . . . . . . . . . . . . 1443 1705 305 536 541 1098 86 Jamming 1074 | . . . . . . . . . . 50 . . . . 11 . . 2 550 157 83 . . 135 86 . Robot Analysis Total 7 | . 2 . 2 . . . 3 . . . . . . . . . . . . . . . . . . . Derelict Logs Recovered 13 | . . 3 . 2 . . . . . . 1 1 2 1 . 2 . . 1 . . . . . . . Drone Launches 1 | . . . . . . . . . . 1 . . . . . . . . . . . . . . . . Drone Recoveries 1 | . . . . . . . . . . 1 . . . . . . . . . . . . . . . . Zionite Intel Received 5 | . . . . . . . . . . . . . . . 1 . . . . 2 . . . 1 1 . Branch Access 1 | . . . . . . . . . . . . . . . . . . . . . . . . . 1 . Component Stockpiles 1 | . . . . . . . . . . . . . . . . . . . . 1 . . . . . . Prototype Stockpiles 1 | . . . . . . . . . . . . . . . . . . . . 1 . . . . . . Prototype Schematics 1 | . . . . . . . . . . . . . . . 1 . . . . . . . . . . . Active Garrisons 1 | . . . . . . . . . . . . . . . . . . . . . . . . 1 . . Exploration | -11 -10 -10 -9 -9 -9 -8 -8 -8 -8 -7 -7 -7 -7 -6 -6 -6 -6 -6 -5 -5 -5 -5 -5 -5 -4 -4 ------------- Run | Yrd Mat Min Mat Min Exi Min Mat Gar Mat Fac Low Low Zio Pro Fac Low Low Dat Pro Fac Ext Cet Arc Hub Fac Upp Turns Passed 32826 | 104 2049 1228 4602 1626 1102 1035 4240 2260 2833 887 301 412 735 393 1060 556 473 71 949 1639 1705 305 536 541 1098 86 Spaces Moved 22084 | 55 780 577 1610 573 504 444 1758 854 1076 1294 523 726 1153 662 1508 853 759 94 838 1849 1198 205 361 492 1268 70 Core 72 | 2 . . . . . . . . . . . . . . . . . . . . . . . . . 70 Treads 656 | . 72 . 64 . . . . 356 164 . . . . . . . . . . . . . . . . . Legs . | . . . . . . . . . . . . . . . . . . . . . . . . . . . Wheels 7584 | 53 708 577 1546 573 504 444 1758 498 912 11 . . . . . . . . . . . . . . . . Hover 13772 | . . . . . . . . . . 1283 523 726 1153 662 1508 853 759 94 838 1849 1198 205 361 492 1268 . Flight . | . . . . . . . . . . . . . . . . . . . . . . . . . . . Fastest Speed 38 | 50 100 175 175 215 215 190 190 190 150 44 44 44 44 44 38 51 53 53 53 46 50 50 50 50 47 50 Average Speed 106 | 98 151 175 203 219 216 215 190 210 213 44 44 45 47 45 42 52 53 53 91 58 50 51 53 50 49 60 Slowest Speed 245 | 100 200 175 240 230 230 230 190 240 245 150 44 106 106 106 51 53 53 53 147 129 50 111 111 50 150 200 Overloaded Moves . | . . . . . . . . . . . . . . . . . . . . . . . . . . . Propulsion Burnouts . | . . . . . . . . . . . . . . . . . . . . . . . . . . . Robots Hopped 1 | . . . . . . . . . . . . . . . . . . . . . 1 . . . . . Potential Cave-ins . | . . . . . . . . . . . . . . . . . . . . . . . . . . . Cave-ins Triggered . | . . . . . . . . . . . . . . . . . . . . . . . . . . . Exploration Rate (%) 71 | 4 97 96 99 92 90 97 93 92 70 29 67 82 87 72 36 91 87 77 73 50 84 74 83 50 30 16 Regions Visited 26 Branch Regions 17 Pre-discovered Areas 11 | . 2 1 2 1 1 . . . . . 1 . 2 . . . . 1 . . . . . . . . Known Exits Taken 18 | . . . . . . . 1 . 1 1 1 1 1 1 1 1 1 1 1 1 1 1 1 1 1 . Unknown Exits Taken 7 | 1 1 1 1 1 1 1 . . . . . . . . . . . . . . . . . . . . Scrap Searched 23 | . . 2 . 1 . 3 . . . . 2 5 2 1 . 3 2 . 2 . . . . . . . Spaces Dug 257 | . 3 . 18 . . . 20 1 21 38 10 12 . . 21 . 4 . 3 56 6 . 1 10 33 . Terrain Destroyed 925 | . 8 . 35 33 . 55 49 30 99 40 10 35 . . 30 . 24 2 10 170 169 30 4 13 56 23 Melee 110 | . 3 . . . . . 4 . . 25 5 1 . . 17 . 4 . 1 38 2 . . 5 5 . Projectile 189 | . . . . 2 . . 18 1 52 15 5 10 . . 13 . . 2 3 18 4 . 4 8 32 2 AOE 625 | . 5 . 35 31 . 55 27 29 47 . . 24 . . . . 20 . 6 114 163 30 . . 18 21 Terrain Rammed . | . . . . . . . . . . . . . . . . . . . . . . . . . . . Walls Destroyed . | . . . . . . . . . . . . . . . . . . . . . . . . . . . Machines Disabled . | . . . . . . . . . . . . . . . . . . . . . . . . . . . Actions | -11 -10 -10 -9 -9 -9 -8 -8 -8 -8 -7 -7 -7 -7 -6 -6 -6 -6 -6 -5 -5 -5 -5 -5 -5 -4 -4 --------- Run | Yrd Mat Min Mat Min Exi Min Mat Gar Mat Fac Low Low Zio Pro Fac Low Low Dat Pro Fac Ext Cet Arc Hub Fac Upp Total 29092 | 88 1449 763 2639 869 513 494 2442 1101 1410 1504 569 774 1337 740 1814 948 804 113 958 2249 2129 380 661 692 1546 106 Wait 4054 | . 473 118 714 231 5 8 463 36 124 89 20 19 167 62 176 24 21 14 65 157 474 139 264 106 72 13 Move 22054 | 54 779 576 1609 572 503 443 1757 851 1075 1293 522 725 1152 661 1507 852 758 93 837 1848 1195 204 360 491 1267 70 Hop 1 | . . . . . . . . . . . . . . . . . . . . . 1 . . . . . Pick Up 200 | 10 35 12 27 4 . 3 13 6 21 11 . . 3 1 9 2 . . 3 22 6 1 . 1 9 1 Fast Attach 87 | 5 3 . 8 . . 1 8 2 4 2 4 . 3 . 4 3 2 1 1 18 2 1 5 2 8 . Attach 90 | 1 6 6 4 1 . . 2 5 7 3 . . . . 2 . . 1 5 23 6 2 . 1 9 6 Detach 27 | . . . 1 . . . . . . . . . . . . . . . 2 16 1 2 . . 2 3 Swap 482 | . 29 13 53 12 1 10 53 16 44 27 4 10 7 6 25 8 5 3 11 23 42 11 8 28 32 1 Drop 261 | 1 15 7 48 6 . 9 41 1 24 19 4 . 5 1 14 6 2 1 . 27 6 1 3 1 15 4 Fire 1055 | 17 105 18 161 43 . 20 101 91 111 20 6 13 . 8 25 7 3 . 8 43 109 11 9 39 83 4 Melee 335 | . 4 . . . 4 . 4 . . 40 9 7 . 1 52 3 13 . 26 72 16 . 12 20 48 4 Ram 1 | . . . . . . . . . . . . . . . . . . . . . . . . . 1 . Kick . | . . . . . . . . . . . . . . . . . . . . . . . . . . . Crush . | . . . . . . . . . . . . . . . . . . . . . . . . . . . Escape Stasis 67 | . . . . . . . . 29 . . . . . . . . . . . . 38 . . . . . Rewire 315 | . . . . . . . . 47 . . . . . . . 43 . . . . 225 . . . . . Trap 27 | . . 13 14 . . . . . . . . . . . . . . . . . . . . . . . Miscellaneous 36 | . . . . . . . . 17 . . . . . . . . . . . . 8 8 . 3 . . Route ------- -11/Scrapyard -10/Materials (discovered 5 exits: *Mat x2 / *Min x2 / [*Sub]) -10/Mines (discovered 2 exits: *Mat x2) -9/Materials (discovered 4 exits: *Mat x3 / [*Min]) -9/Mines (discovered 4 exits: *Mat x2 / *Exi / *Zio) -9/Exiles -8/Mines (discovered 2 exits: *Mat x2) -8/Materials (discovered 5 exits: *Fac x2 / [*Sto x2] / Gar) -8/Garrison (discovered 3 exits: *Mat x3) -8/Materials (discovered 3 exits: *Fac x2 / [*Sto]) -7/Factory (discovered 2 exits: *Fac / *Low) -7/Lower Caves -7/Lower Caves (discovered 2 exits: *Fac / *Zio) -7/Zion -6/Proximity Caves -6/Factory -6/Lower Caves -6/Lower Caves (discovered 2 exits: *Fac / *Dat) -6/Data Miner -5/Proximity Caves -5/Factory (discovered 3 exits: *Fac x2 / *Ext) -5/Extension (discovered 2 exits: *Fac / *Cet) -5/Cetus (discovered 2 exits: *Fac / *Arc) -5/Archives (discovered 3 exits: *Fac / *Hub x2) -5/Hub_04(d) -4/Factory (discovered 4 exits: Res / *Upp x2 / Arm) -4/Upper Caves History --------- Turn | Location | Event 9 | -11/Scrapyard | Discovered new exit (range 16) 105 | -11/Scrapyard | Entered Materials 313 | -10/Materials | Build established: Mutant 742 | -10/Materials | Discovered new exit (range 6) 768 | -10/Materials | Discovered new exit (range 13) 1072 | -10/Materials | Discovered new exit (range 5) 1107 | -10/Materials | Discovered new exit (range 6) 1621 | -10/Materials | Discovered new exit (range 7) 1969 | -10/Materials | Build established: Scavenger-Mutant 2154 | -10/Materials | Entered Mines 2182 | -10/Mines | Core integrity fell below 50% 2292 | -10/Mines | Learned Materials terminal intel 2397 | -10/Mines | Lost 4 parts (1p1n2w) 2549 | -10/Mines | Found a damaged Exp. Sensor Array with a note attached 2553 | -10/Mines | Found Prototype Device 2666 | -10/Mines | Learned Materials emergency access door positions 2881 | -10/Mines | Discovered new exit (range 7) 2963 | -10/Mines | Discovered new exit (range 10) 3088 | -10/Mines | Met a Derelict who couldn't figure out how to use a Trap Extractor 3379 | -10/Mines | Identified Exp. Sensor Array 3382 | -10/Mines | Entered Materials 3382 | -9/Materials | Accompanied by 1 ally 3382 | -9/Materials | Evolved 2 slots: Propulsion x1, Utility x1 3384 | -9/Materials | Loaded intel: 12 terminal locations 4135 | -9/Materials | Discovered new exit (range 10) 4830 | -9/Materials | Discovered new exit (range 8) 5107 | -9/Materials | Discovered new exit (range 8) 5334 | -9/Materials | Repaired Lgt. Treads 5557 | -9/Materials | Discovered new exit (range 3) 5996 | -9/Materials | Central database locked down 6017 | -9/Materials | Core integrity fell below 50% 7984 | -9/Materials | Entered Mines 7985 | -9/Mines | Assembled infested the area 8553 | -9/Mines | Met a Derelict testing a Signal Generator 8698 | -9/Mines | Deemed a non-threat by the Exiles lab entrance 8843 | -9/Mines | Assisted by bots powering up and referring to "LRC-V3" 8890 | -9/Mines | Discovered new exit (range 10) 8954 | -9/Mines | Learned location of 1 exit from Materials 8987 | -9/Mines | Found a hidden stash of uninstalled traps 9049 | -9/Mines | Joined a pair of Derelicts in attacking an 0b10 outpost 9206 | -9/Mines | Discovered new exit (range 3) 9425 | -9/Mines | A Derelict revealed a hidden shortcut to a safe place 9583 | -9/Mines | Discovered new exit (range 5) 9610 | -9/Mines | Entered Exiles 9610 | -9/Exiles | Accompanied by 4 allies 9670 | -9/Exiles | Met 8R-AWN 9707 | -9/Exiles | Met EX-HEX 9931 | -9/Exiles | Met EX-DEC 10019 | -9/Exiles | Visited The Gauntlet 10300 | -9/Exiles | Learned location of Zion (-7) 10429 | -9/Exiles | Met EX-BIN 10690 | -9/Exiles | Discovered new exit (range 10) 10712 | -9/Exiles | Entered Mines 10712 | -8/Mines | Accompanied by 4 allies 11187 | -8/Mines | Discovered new exit (range 9) 11360 | -8/Mines | Discovered new exit (range 7) 11404 | -8/Mines | Lost 3 allies 11408 | -8/Mines | Found a Scrap Suit stashed away for nefarious purposes 11424 | -8/Mines | Found Scrap Suit 11747 | -8/Mines | Entered Materials 11747 | -8/Materials | Accompanied by 1 ally 11747 | -8/Materials | Evolved 2 slots: Propulsion x1, Weapon x1 11748 | -8/Materials | Identified exit to Factory 11853 | -8/Materials | Discovered new exit (range 15) 11894 | -8/Materials | Discovered new exit (range 10) 12137 | -8/Materials | Build established: Scavenger-Tank 12258 | -8/Materials | Identified exit to Garrison 13579 | -8/Materials | Repaired Med. Armor Plating 13882 | -8/Materials | Discovered exit to Factory (range 7) 15575 | -8/Materials | Build established: Tank 15727 | -8/Materials | Garrison activated, responded to threat 15987 | -8/Materials | Entered Garrison 16058 | -8/Garrison | Phase Generator disabled 16125 | -8/Garrison | Triggered checkpoint 16547 | -8/Garrison | Triggered checkpoint 16672 | -8/Garrison | Garrison Relay disabled 16733 | -8/Garrison | Discovered new exit (range 15) 16816 | -8/Garrison | Build established: Scavenger-Tank 16979 | -8/Garrison | Triggered checkpoint 17095 | -8/Garrison | Attempted to access garrison exit controls, blocked by remote lockdown 17183 | -8/Garrison | Build established: Tank 17282 | -8/Garrison | Destroyed 7 combat bots 17472 | -8/Garrison | Core integrity fell below 50% 17506 | -8/Garrison | Lost 3 parts (1n2w) 17629 | -8/Garrison | Discovered new exit (range 7) 17671 | -8/Garrison | Triggered checkpoint 17943 | -8/Garrison | Garrison Relay disabled 18013 | -8/Garrison | Attempted to access garrison exit controls, blocked by remote lockdown 18028 | -8/Garrison | Build established: Scavenger-Tank 18091 | -8/Garrison | Triggered checkpoint 18206 | -8/Garrison | Discovered new exit (range 14) 18247 | -8/Garrison | Entered Materials 18247 | -8/Materials | Accompanied by 2 allies 19389 | -8/Materials | Repaired Broken Arm. Treads 19510 | -8/Materials | Discovered exit to Factory (range 15) 19773 | -8/Materials | Central database locked down 19847 | -8/Materials | First assault squad dispatched 19965 | -8/Materials | Core integrity fell below 20% 20045 | -8/Materials | Discovered new exit (range 4) 20076 | -8/Materials | Discovered exit to Factory (range 8) 21080 | -8/Materials | Entered Factory 21080 | -7/Factory | Evolved 2 slots: Propulsion x1, Utility x1 21252 | -7/Factory | Discovered new exit (range 5) 21254 | -7/Factory | Identified exit to Factory 21396 | -7/Factory | Build established: Mutant 21632 | -7/Factory | Discovered new exit (range 7) 21635 | -7/Factory | Identified exit to Lower Caves 21967 | -7/Factory | Entered Lower Caves 21980 | -7/Lower Caves | Learned Factory emergency access door positions 21982 | -7/Lower Caves | Encountered a Warlord checkpoint 22006 | -7/Lower Caves | Met a Warlord Commander 22007 | -7/Lower Caves | Learned location of Warlord (-5) 22008 | -7/Lower Caves | Warlord Commander delivered Encrypted Comm Array 22010 | -7/Lower Caves | Found Encrypted Comm Array 22238 | -7/Lower Caves | Discovered new exit (range 9) 22267 | -7/Lower Caves | Identified exit to Lower Caves 22268 | -7/Lower Caves | Entered another Lower Caves area 22299 | -7/Lower Caves | Discovered exit to Factory (range 14) 22445 | -7/Lower Caves | Learned Factory emergency access door positions 22576 | -7/Lower Caves | Entered an active Warlord outpost 22577 | -7/Lower Caves | A Commander dispatched an escort 22581 | -7/Lower Caves | Learned Armory stockpile data 22581 | -7/Lower Caves | Learned Extension security intel 22614 | -7/Lower Caves | Discovered new exit (range 15) 22670 | -7/Lower Caves | Identified exit to Zion 22680 | -7/Lower Caves | Entered Zion 22680 | -7/Zion | Accompanied by 2 allies 22681 | -7/Zion | Commander's escort returned to base 22681 | -7/Zion | Commander's escort returned to base 22702 | -7/Zion | System corruption cleaned by Quarantine Array 22749 | -7/Zion | Given A8's code to call for help 22780 | -7/Zion | Learned location of Armory (-4) 22795 | -7/Zion | Given the Hacking Drone Bay 22891 | -7/Zion | Learned location of 1 exit from Lower Caves 22969 | -7/Zion | Identified exit to Proximity Caves 22988 | -7/Zion | Found CR-A16's Pointy Stick 23032 | -7/Zion | Found Prototype Device 23033 | -7/Zion | Identified Phasing AFG 23064 | -7/Zion | Met Imprinter 23072 | -7/Zion | Imprinted 23074 | -7/Zion | Declared Zion's savior 23415 | -7/Zion | Entered Proximity Caves 23415 | -6/Proximity Caves | Accompanied by 4 allies 23475 | -6/Proximity Caves | Build established: Gladiator 23741 | -6/Proximity Caves | Learned Factory stockpile data 23759 | -6/Proximity Caves | Discovered exit to Factory (range 4) 23808 | -6/Proximity Caves | Entered Factory 23808 | -6/Factory | Accompanied by 3 allies 23808 | -6/Factory | Evolved 2 slots: Propulsion x1, Utility x1 24377 | -6/Factory | Discovered new exit (range 17) 24388 | -6/Factory | Identified exit to Lower Caves 24419 | -6/Factory | Spotted B-75 Beast 24525 | -6/Factory | Retrieved Zion intel report: Prototype Schematics 24647 | -6/Factory | Fabricated Cmb. Airjet? 24868 | -6/Factory | Entered Lower Caves 24869 | -6/Lower Caves | Identified exit to Lower Caves 24889 | -6/Lower Caves | Learned 4 Factory zone layouts 24987 | -6/Lower Caves | Entered an active Warlord outpost 24991 | -6/Lower Caves | Learned Research emergency access door positions 25038 | -6/Lower Caves | Learned Factory terminal intel 25121 | -6/Lower Caves | Build established: Scout 25424 | -6/Lower Caves | Entered another Lower Caves area 25424 | -6/Lower Caves | Accompanied by 4 allies 25497 | -6/Lower Caves | Discovered new exit (range 10) 25685 | -6/Lower Caves | Learned Extension trap positions 25685 | -6/Lower Caves | Learned Factory emergency access door positions 25685 | -6/Lower Caves | Learned Extension emergency access door positions 25700 | -6/Lower Caves | Build established: Commander-Scout 25753 | -6/Lower Caves | Found Alien Artifact 25753 | -6/Lower Caves | Identified Core Expander 25753 | -6/Lower Caves | Installed Core Expander, added new Weapon slot 25813 | -6/Lower Caves | Discovered new exit (range 5) 25815 | -6/Lower Caves | Identified exit to Data Miner 25897 | -6/Lower Caves | Entered Data Miner 25897 | -6/Data Miner | Accompanied by 4 allies 25897 | -6/Data Miner | Discovered new exit (range 6) 25900 | -6/Data Miner | Identified exit to Proximity Caves 25905 | -6/Data Miner | Met Data Miner 25925 | -6/Data Miner | Learned location of Section 7 (-3) 25925 | -6/Data Miner | Acquired the access code to Warlord's prototype stash 25934 | -6/Data Miner | Received God Mode back door access code from Data Miner 25968 | -6/Data Miner | Entered Proximity Caves 25968 | -5/Proximity Caves | Accompanied by 4 allies 26007 | -5/Proximity Caves | Attracted the attention of an 0b10 checkpoint 26290 | -5/Proximity Caves | Spotted B-75 Beast 26356 | -5/Proximity Caves | Revealed the true nature of CR-A16's Pointy Stick 26361 | -5/Proximity Caves | Destroyed B-75 Beast 26391 | -5/Proximity Caves | Lost 7 parts (1p3n2u1w) 26397 | -5/Proximity Caves | Attracted the attention of an 0b10 base 26432 | -5/Proximity Caves | Learned Factory emergency access door positions 26633 | -5/Proximity Caves | Build established: Gladiator 26884 | -5/Proximity Caves | Discovered new exit (range 2) 26885 | -5/Proximity Caves | Identified exit to Factory 26917 | -5/Proximity Caves | Entered Factory 26917 | -5/Factory | Evolved 2 slots: Power x1, Utility x1 26920 | -5/Factory | Loaded intel: 27 terminal locations 27076 | -5/Factory | Repaired Cmb. Airjet 27324 | -5/Factory | Lost 4 parts (1p2n1u) 27408 | -5/Factory | Retrieved Zion intel report: Prototype Stockpiles 27409 | -5/Factory | Zion Fire squad teleported in 27506 | -5/Factory | Discovered new exit (range 11) 27542 | -5/Factory | Zion Recon squad teleported in 27599 | -5/Factory | Identified exit to Factory 27822 | -5/Factory | Build established: Scout 28020 | -5/Factory | Retrieved Zion intel report: Component Stockpiles 28021 | -5/Factory | Zion Defense Resupply teleported in 28047 | -5/Factory | Discovered exit to Factory (range 5) 28144 | -5/Factory | Terminal network hard line cut 28164 | -5/Factory | Fabricated Cld. Airjet (x1) 28418 | -5/Factory | Cargo convoy interrupted 28505 | -5/Factory | Discovered new exit (range 10) 28556 | -5/Factory | Identified exit to Extension 28556 | -5/Factory | Entered Extension 28557 | -5/Extension | Loaded intel: 18 trap records 28606 | -5/Extension | Rescued a captive Derelict 28606 | -5/Extension | Rescued a captive Derelict 28999 | -5/Extension | Rescued a captive Derelict 29001 | -5/Extension | Rescued a captive Derelict 29063 | -5/Extension | Rescued a captive Derelict 29076 | -5/Extension | Rescued A7 29306 | -5/Extension | Disrupted transfer network 29501 | -5/Extension | Build established: Commander-Scout 29585 | -5/Extension | Spotted B-75 Beast 29590 | -5/Extension | Allies destroyed B-75 Beast 29594 | -5/Extension | Spotted B-75 Beast 29625 | -5/Extension | Allies destroyed B-75 Beast 29652 | -5/Extension | Lost 7 allies 29704 | -5/Extension | Zion Hacker squad teleported in 29755 | -5/Extension | Lost 3 allies 29757 | -5/Extension | Terminal network hard line cut 29790 | -5/Extension | Repaired Cmb. Airjet 30056 | -5/Extension | First assault squad dispatched 30097 | -5/Extension | Rescued a captive Derelict 30173 | -5/Extension | Lost 10 allies 30173 | -5/Extension | Rescued a captive Derelict 30174 | -5/Extension | Rescued a captive Derelict 30183 | -5/Extension | Rescued a captive Derelict 30185 | -5/Extension | Rescued a captive Derelict 30209 | -5/Extension | Discovered exit to Factory (range 10) 30210 | -5/Extension | Discovered new exit (range 6) 30256 | -5/Extension | Identified exit to Cetus 30261 | -5/Extension | Entered Cetus 30261 | -5/Cetus | Accompanied by 3 allies (A7) 30266 | -5/Cetus | Acquired a Cetus Manufacturing Module code from A7 30276 | -5/Cetus | Spotted Cetus Guard 30276 | -5/Cetus | Spotted Cetus Guard 30283 | -5/Cetus | Allies destroyed Cetus Guard 30283 | -5/Cetus | Spotted Cetus Guard 30286 | -5/Cetus | Destroyed Cetus Guard 30286 | -5/Cetus | Spotted Cetus Guard 30288 | -5/Cetus | Allies destroyed Cetus Guard 30290 | -5/Cetus | Destroyed Cetus Guard 30319 | -5/Cetus | Started Cetus Manufacturing Module 30340 | -5/Cetus | Escorted A7 to Cetus Mainframe 30344 | -5/Cetus | Manufactured an Enhanced Grunt 30353 | -5/Cetus | Discovered new exit (range 16) 30369 | -5/Cetus | Manufactured an Enhanced Grunt 30394 | -5/Cetus | Manufactured an Enhanced Grunt 30419 | -5/Cetus | Manufactured an Enhanced Grunt 30444 | -5/Cetus | Manufactured an Enhanced Grunt 30474 | -5/Cetus | Spotted Cetus Guard 30477 | -5/Cetus | Allies destroyed Cetus Guard 30483 | -5/Cetus | Spotted Cetus Guard 30483 | -5/Cetus | Spotted Cetus Guard 30491 | -5/Cetus | Allies destroyed Cetus Guard 30498 | -5/Cetus | Allies destroyed Cetus Guard 30509 | -5/Cetus | Discovered exit to Factory (range 16) 30513 | -5/Cetus | Scared off Revision 17 30515 | -5/Cetus | System corruption reached 10% 30553 | -5/Cetus | Identified exit to Archives 30566 | -5/Cetus | Entered Archives 30566 | -5/Archives | Accompanied by 7 allies (A7) 30575 | -5/Archives | Received a hacking code to weaken MAIN.C 30647 | -5/Archives | Discovered new exit (range 14) 30666 | -5/Archives | Discovered exit to Factory (range 15) 30703 | -5/Archives | Discovered new exit (range 16) 30712 | -5/Archives | Build established: Commander-Gladiator 31002 | -5/Archives | Unable to access archive contents 31035 | -5/Archives | Identified exit to Hub_04(d) 31102 | -5/Archives | Entered Hub_04(d) 31102 | -5/Hub_04(d) | Accompanied by 4 allies 31141 | -5/Hub_04(d) | Zion Heavy squad teleported in 31160 | -5/Hub_04(d) | Spotted B-75 Beast 31373 | -5/Hub_04(d) | Retrieved Zion intel report: Active Garrisons 31374 | -5/Hub_04(d) | Zion Fire squad teleported in 31428 | -5/Hub_04(d) | Discovered exit to Factory (range 6) 31439 | -5/Hub_04(d) | Zion Heavy squad teleported in 31516 | -5/Hub_04(d) | Network Hub disabled 31565 | -5/Hub_04(d) | Lost 3 allies 31643 | -5/Hub_04(d) | Entered Factory 31643 | -4/Factory | Evolved 2 slots: Utility x2 31644 | -4/Factory | Identified exit to Research 31644 | -4/Factory | Identified exit to Armory 31672 | -4/Factory | Lost 8 allies 31674 | -4/Factory | Zion hero teleported in (1C-UTU) 31788 | -4/Factory | Fabricated Exp. Targeting Computer (x1) 32021 | -4/Factory | Retrieved Zion intel report: Branch Access 32021 | -4/Factory | Identified exit to Upper Caves 32143 | -4/Factory | First assault squad dispatched 32230 | -4/Factory | Build established: Scout 32679 | -4/Factory | Garrison activated, responded to threat 32741 | -4/Factory | Entered Upper Caves 32779 | -4/Upper Caves | Core integrity fell below 50% 32804 | -4/Upper Caves | Lost 14 parts (1p6n3u4w) 32810 | -4/Upper Caves | Core integrity fell below 20% 32827 | -4/Upper Caves | Destroyed by P-70 Sage with Tesla Rifle Last Messages --------------- 32756_ S-27 Virus system corrupted by crushing effect. 32756_ S-27 Virus knocked back. 32756_ S-27 Virus misfires. 32759_ P-70 Sage resets S-27 Virus, system corruption cleaned. 32760_ Destroyed Lgt. Nuclear Core. 32760_ S-27 Virus system corrupted by crushing effect. 32763_ P-70 Sage resets S-27 Virus, system corruption cleaned. 32769_ Thunder Hammer destroyed. 32771_ The unstable cave ceiling collapses. 32773_ Centrium Medium Armor Plating destroyed. 32776_ The unstable cave ceiling collapses. 32776_ Acquired 13 matter. 32778_ Dropped CR-A16's Behemoth Slayer. 32778_ Acquired Hvy. Phase Cannon. 32784_ S-27 Virus destroyed. 32824_ Adv. Melee Analysis Suite destroyed. Map ----- +----------------------------------------------------+ | ?????????????????????????????????????????????????? | | ?????????????????????????????????????????????????? | | ?????????????????????????????????????????????????? | | ?????????????????????????????????????????????????? | | ?????????????????????????????????????????????????? | | ?????????????????????????????????????????????????? | | ?????????????????????????????????????????????????? | | ?????????????????????????????????????????????????? | | ?????????????????????????????????????????????????? | | ?????????????????????????????????????????????????? | | ?????????????????????????????????????????????????? | | ?????????????????????????????????????????????????? | | ?????????????????????????????????????????????????? | | ?????????????#####???????????????????????????????? | | ?????????????# ####????????????????????????????? | | ?????????????# ##???????????????????????????? | | ????????????## ##??????????????????????????? | | ???????????## ##?????????????????????????? | | ??????????## ## ###???????????????????????? | | ??????????# ## ###?####????????????????? | | ??????????# ## #????????????????? | | ??????????## #????????????????? | | ???????????# ##???????????????? | | ???????????### #???????????????? | | ?????????????## p #???????????????? | | ??####????????## @ ##???????????????? | | ?## #?####????# #????????????????? | | ## ### #?######p ##???????????????? | | # ### #### #???????????????? | | ## #???????????????? | | # ## ###???????????????? | | # ### ##?????????????????? | | # #?# #??????????????????? | | # #? #??????????????????? | | # ## ##? #??????????????????? | | # ## #?? #??????????????????? | | #### ## ##?? ##??????????????????? | | ???## ### #??? ##???????#???????????? | | ????## ##?# ###? ##?????? #???????????? | | ?????########## "######????? ##??????????? | | ???????????## % #????### #??????????? | | ???????????# ## ##?? #??????????? | | ??????????## ## ## #???????????? | | ?????????## ## / " #????????????? | | ????????## ### !]! " #?????????????? | | ?# ### !% "%####?????????????? | | ??# ]!! ##????????????????? | | ???# # % #####?????????????????? | | ???## ##### #?????????????????????? | | ????## ???### #?????????????????????? | +----------------------------------------------------+ Best States ------------- Heat Dissipation 61 Energy Generation 19 Energy Capacity 500 Matter Stores 300 Matter Capacity 300 Sight Range 22 Robot Scan Range 20 Terrain Scan Density 10 Jamming Range 16 Armor Coverage 225 Resistance: TH 30 Evasion (%) 57 Melee Accuracy 16 Core Analysis 6 Recoil Reduction 4 Offensive Hacking 10 Authchip Count 1 Trap Extractor Capacity 6 Item Schematics ----------------- Huge Storage Unit | -8/Materials | Hacked Cmb. Airjet | -8/Materials | Scanalyzed Cld. Airjet | -7/Factory | Scanalyzed Imp. Field Recycling Unit | -7/Zion | Archive Hvy. Plasma Cannon | -7/Zion | Archive Force Booster | -7/Zion | Archive Adv. Sensor Array | -7/Zion | Archive Med. Reflective Plating | -7/Zion | Archive Focal Shield | -7/Zion | Archive Adv. Assault Cannon | -7/Zion | Archive Lrn. Proton Cannon | -7/Zion | Archive Tesla Rifle | -7/Zion | Archive Chainsword | -7/Zion | Archive Matter Compressor | -7/Zion | Archive Med. Reactive Plating | -7/Zion | Archive Phase Cannon | -7/Zion | Archive Enh. Optical Array | -7/Zion | Archive Proton Missile Launcher | -7/Zion | Archive Imp. Spread Laser | -6/Factory | Z-intel Cld. Pulse Rifle | -6/Factory | Z-intel Exp. Targeting Computer | -6/Factory | Z-intel Adv. Beam Rifle | -6/Factory | Z-intel Hvy. Deuterium Engine | -6/Factory | Z-intel Enh. Nuclear Core | -6/Factory | Z-intel Imp. Lightning Gun | -6/Factory | Z-intel F-cell Engine | -6/Factory | Z-intel Cold Fusion Reactor | -6/Factory | Z-intel Prc. Assault Rifle | -6/Factory | Z-intel Exp. Power Shielding | -6/Factory | Z-intel Combat Drone Bay | -6/Data Miner | Free Lgt. Regenerative Plating | -6/Data Miner | Free Enh. Armored Leg | -6/Data Miner | Free Imp. Energy Well | -6/Data Miner | Free Imp. Antigrav System | -6/Data Miner | Free Ionic Axe | -6/Data Miner | Free Nanoactuators | -6/Data Miner | Free Phase Gun | -6/Data Miner | Free Imp. Component Analysis Suite | -6/Data Miner | Free Adv. VSS Leg | -6/Data Miner | Free Matter Neutralizer | -6/Data Miner | Free Adv. Launcher Guidance Computer | -6/Data Miner | Free Nova Cannon | -6/Data Miner | Free Smartbomb Launcher | -4/Factory | Scanalyzed Robot Schematics ------------------ M-13 Machinist | -9/Materials | Hacked S-27 Virus | -7/Zion | Archive B-48 Gladiator | -7/Zion | Archive A-02 Transporter | -7/Zion | Archive P-60 Hacker | -6/Data Miner | Free R-10 Processor | -6/Data Miner | Free Fabricated ------------ Cmb. Airjet | x2 | -6/Factory | Authchip Cld. Airjet | x1 | -5/Factory | Authchip Exp. Targeting Computer | x1 | -4/Factory | Authchip Repaired ---------- Lgt. Treads | 56% | -9/Materials Med. Armor Plating | 5% | -8/Materials Arm. Treads | 62% | -8/Materials | Broken Cmb. Airjet | 13% | -5/Factory Cmb. Airjet | 21% | -5/Extension Alien Tech Used ----------------- Core Expander Achievements -------------- Heroic Deeds Preemptive Strike Challenges ------------ None Game ------ Seed HugeNavigationThermoblaster Manual? 0 Play Time 05:32:52 Cumulative 187.8 hours Start 2025.10.06 @ 18:28:16 End 2025.10.10 @ 19:19:36 Sessions 22 Manual Loads 0 Difficulty Rogue Special Mode None Game No. 57 Rogue 51 Adventurer 0 Explorer 6 Win Type - Total 10 Types 6/0/2/1/0/0/0/1/0/0 Lore% 75 Gallery% 67 Achievement% 65 Wizard Run 0 Options --------- Layout 1 ASCII 0 Keyboard 0 Movement Mouse Keybinds 0 Fullscreen 2 Font 24/Smallcaps Map View 50x35 Zoom Use 0% Tactical HUD 1 Map Filters NONE Filters NONE Steam 1 RUN: 465b7e53-caf9-44a8-bc76-ee956f0174ab